bitfinex-derivatives/quotes_BNBF0:USTF0_20250708
["timestamp","ask_amount","ask_price","bid_price","bid_amount"]
[1751955874675,0.26363836,660.45,659.77,1.739]
[1751955875375,0.26363836,660.45,659.77,3.44063447]
[1751955876374,0.26363836,660.45,659.78,1.70163447]
[1751955877674,0.26363836,660.45,659.86,1.70163447]
[1751955877878,0.26363836,660.45,659.87,1.70163447]
[1751955878278,0.26363836,660.45,659.85,1.70163447]
[1751955878780,0.26363836,660.45,659.84,1.70163447]
[1751955881478,0.26363836,660.45,659.87,1.70163447]
[1751955881981,0.26363836,660.45,659.88,1.70163447]
[1751955882378,0.26363836,660.45,659.89,1.70163447]
[1751955883079,0.26363836,660.45,659.79,1.70163447]
[1751955887284,0.26363836,660.45,659.8,1.70163447]
[1751955887985,0.26363836,660.45,659.74,1.70163447]
[1751955888786,0.26363836,660.45,659.75,1.70163447]
[1751955889587,0.26363836,660.45,659.76,1.70163447]
[1751955891288,0.26363836,660.45,659.77,1.788]
[1751955892985,0.26363836,660.45,659.81,1.70163447]
[1751955893189,0.26363836,660.45,659.82,1.70163447]
[1751955894187,1.96745916,660.45,659.82,1.70163447]
[1751955894692,1.96745916,660.45,659.83,1.70163447]
[1751955895187,1.7038208,660.44,659.83,1.70163447]
[1751955896092,1.7038208,660.42,659.87,1.70163447]
[1751955896289,1.7038208,660.41,659.87,1.70163447]
[1751955897693,1.7038208,660.37,659.94,1.70163447]
[1751955899698,1.7038208,660.36,659.95,1.70163447]
[1751955904395,1.7038208,660.35,659.96,1.70163447]
[1751955904991,1.7038208,660.35,659.97,1.70163447]
[1751955908997,2.72949289,660.35,659.97,1.70163447]
[1751955909198,1.7038208,660.35,659.97,1.70163447]
[1751955912396,2.72949289,660.35,659.97,1.70163447]
[1751955912594,1.7038208,660.35,659.97,1.70163447]
[1751955914396,2.72949289,660.35,659.97,1.70163447]
[1751955914596,1.7038208,660.35,659.97,1.70163447]
[1751955916193,1.7038208,660.37,659.93,1.70163447]
[1751955916600,1.7038208,660.38,659.92,1.70163447]
[1751955921501,1.7038208,660.38,659.93,1.699]
[1751955926005,1.7038208,660.37,659.94,1.70163447]
[1751955926402,1.7038208,660.36,659.95,1.70163447]
[1751955930104,1.7038208,660.36,659.94,1.70163447]
[1751955931003,1.7038208,660.36,659.95,1.70163447]
[1751955931511,1.7038208,660.35,659.96,1.70163447]
[1751955935009,1.02576286,660.38,659.93,1.699]
[1751955935010,1.7038208,660.36,659.94,1.70163447]
[1751955935509,1.7038208,660.37,659.93,3.40063447]
[1751955939609,1.7038208,660.36,659.93,1.699]
[1751955940012,1.7038208,660.36,659.93,3.40063447]
[1751955940515,1.7038208,660.36,659.93,1.70163447]
[1751955941412,2.72979691,660.36,659.93,1.70163447]
[1751955941611,1.7038208,660.36,659.93,1.70163447]
[1751955942512,1.7038208,660.35,659.93,1.70163447]
[1751955943313,1.7038208,660.35,659.94,1.315]
[1751955943512,1.70414897,660.35,659.94,1.315]
[1751955944314,1.70414897,660.35,659.94,3.01686968]
[1751955945014,1.70414897,660.34,659.95,1.70186968]
[1751955945418,2.73032371,660.33,659.97,1.70186968]
[1751955945614,1.70414897,660.33,659.97,1.70186968]
[1751955945819,2.73032371,660.32,659.98,1.70186968]
[1751955946020,1.70414897,660.33,659.97,1.70186968]
[1751955946321,1.70414897,660.31,659.95,1.70186968]
[1751955946516,1.02617474,660.3,659.95,1.70186968]
[1751955946717,1.70414897,660.32,659.94,1.315]
[1751955947120,1.02617474,660.31,659.94,1.315]
[1751955948421,1.70414897,660.32,659.94,1.315]
[1751955950318,1.70414897,660.33,659.94,1.315]
[1751955950625,2.73032371,660.33,659.94,1.315]
[1751955950826,1.02617474,660.32,659.94,1.315]
[1751955951026,2.73032371,660.31,659.94,1.315]
[1751955951325,1.70414897,660.31,659.94,1.315]
[1751955951525,1.70414897,660.32,659.94,1.315]
[1751955952023,1.70414897,660.31,659.94,1.315]
[1751955952429,0.41480961,660.31,659.94,1.315]
[1751955952628,1.70414897,660.32,659.94,1.315]
[1751955955027,2.11914626,660.32,659.94,1.315]
[1751955955227,1.70414897,660.32,659.94,1.315]
[1751955955431,1.70414897,660.33,659.94,1.315]
[1751955956633,1.70414897,660.32,659.94,1.315]
[1751955956940,1.70414897,660.33,659.94,1.315]
[1751955959633,3.14505496,660.33,659.94,1.315]
[1751955959832,1.70414897,660.33,659.94,1.315]
[1751955962133,1.70414897,660.31,659.94,1.315]
[1751955966240,1.96779932,660.32,659.94,1.315]
[1751955966437,1.70414897,660.31,659.94,1.315]
[1751955966935,1.70414897,660.27,659.94,1.315]
[1751955967436,1.0256141,660.31,659.94,1.315]
[1751955967637,1.70289768,660.28,659.94,1.315]
[1751955969845,1.70289768,660.24,659.94,1.315]
[1751955970144,1.70289768,660.25,659.94,1.315]
[1751955972141,1.70289768,660.26,659.94,1.315]
[1751955972943,1.70289768,660.25,659.94,1.315]
[1751955973148,1.70289768,660.2,659.94,1.315]
[1751955973550,1.70289768,660.19,659.94,1.315]
[1751955974348,1.70289768,660.2,659.94,1.315]
[1751955975152,1.70289768,660.18,659.94,1.315]
[1751955975349,1.70289768,660.19,659.94,1.315]
[1751955976246,1.70289768,660.2,659.94,1.315]
[1751955977254,2.11706912,660.2,659.94,1.315]
[1751955977450,1.70289768,660.2,659.94,1.315]
[1751955978255,1.70289768,660.22,659.94,1.315]
[1751955978656,1.70289768,660.21,659.94,1.315]
[1751955979054,2.11706912,660.21,659.94,1.315]
[1751955979252,1.0239898,660.31,659.94,1.315]
[1751955979253,1.70289768,660.22,659.94,1.315]
[1751955982264,1.70289768,660.23,659.94,1.315]
[1751955983064,1.70289768,660.22,659.94,1.315]
[1751955983261,1.70289768,660.23,659.94,1.315]
[1751955983566,1.70289768,660.21,659.94,1.315]
[1751955983862,1.70289768,660.13,659.94,1.315]
[1751955984261,1.70289768,660.14,659.94,1.315]
[1751955985466,1.70289768,660.15,659.94,1.315]
[1751955987764,2.11706912,660.15,659.94,1.315]
[1751955987969,1.70289768,660.15,659.94,1.315]
[1751955988166,1.70289768,660.16,659.94,1.315]
[1751955990170,4.38811457,660.17,659.94,1.315]
[1751955990467,2.68521689,660.16,659.94,1.315]
[1751955990665,1.43816124,660.16,659.94,1.315]
[1751955990865,1.70289768,660.17,659.94,1.315]
[1751955991466,1.70289768,660.18,659.94,1.315]
[1751955993168,1.70289768,660.19,659.94,1.315]
[1751955993566,3.14105892,660.19,659.94,1.315]
[1751955993766,1.70289768,660.18,659.94,1.315]
[1751955994271,1.70289768,660.19,659.94,1.315]
[1751955994566,1.70289768,660.18,659.94,1.315]
[1751955996170,1.70289768,660.19,659.94,1.315]
[1751955996371,1.70289768,660.19,659.46,1.70185247]
[1751955997169,1.70289768,660.19,659.45,1.70185247]
[1751955997373,1.70289768,660.19,659.46,1.70185247]
[1751955998469,1.0239898,660.25,659.43,0.26369829]
[1751955998671,1.0239898,660.24,659.43,0.26369829]
[1751955998875,1.0239898,660.23,659.43,0.26369829]
[1751955999069,1.0239898,660.22,659.43,0.26369829]
[1751955999268,1.0239898,660.21,659.43,0.26369829]
[1751955999482,1.0239898,660.31,659.43,0.26369829]
[1751955999682,1.0239898,660.3,659.43,0.26369829]
[1751955999880,1.0239898,660.29,659.43,0.26369829]
[1751956000183,1.0239898,660.28,659.44,1.833]
[1751956000383,1.0239898,660.27,659.44,1.833]
[1751956000580,1.0239898,660.26,659.44,1.833]
[1751956000781,1.0239898,660.25,659.44,1.833]
[1751956000978,1.0239898,660.24,659.44,1.833]
[1751956001180,1.0239898,660.23,659.44,1.833]
[1751956001481,1.0239898,660.22,659.44,1.833]
[1751956001783,1.0239898,660.21,659.44,1.833]
[1751956001980,1.0239898,660.2,659.44,1.833]
[1751956002279,1.0239898,660.31,659.44,1.833]
[1751956002480,1.0239898,660.3,659.44,1.833]
[1751956002682,1.0239898,660.29,659.44,1.833]
[1751956002881,1.0239898,660.28,659.44,1.833]
[1751956003085,1.0239898,660.27,659.44,1.833]
[1751956003282,1.0239898,660.26,659.44,1.833]
[1751956003480,1.0239898,660.25,659.44,1.833]
[1751956003683,1.0239898,660.24,659.44,1.833]
[1751956003883,1.65648122,660.69,659.44,1.833]
[1751956004080,1.02021086,660.31,659.44,1.833]
[1751956004284,1.02021086,660.3,659.44,1.833]
[1751956004582,1.02021086,660.29,659.44,1.833]
[1751956004781,1.02021086,660.28,659.44,1.833]
[1751956004982,1.02021086,660.27,659.44,1.833]
[1751956005186,1.02021086,660.26,659.44,1.833]
[1751956005382,1.02021086,660.25,659.44,1.833]
[1751956005586,1.02021086,660.24,659.44,1.833]
[1751956005787,1.02021086,660.23,659.44,1.833]
[1751956005984,1.02021086,660.22,659.44,1.833]
[1751956006185,1.02021086,660.21,659.44,1.833]
[1751956006383,1.02021086,660.2,659.44,1.833]
[1751956006584,1.02021086,660.31,659.44,1.833]
[1751956006786,1.02021086,660.3,659.44,1.833]
[1751956006988,1.02021086,660.29,659.44,1.833]
[1751956007186,1.02021086,660.28,659.44,1.833]
[1751956007388,1.02021086,660.27,659.44,1.833]
[1751956007588,1.24353794,660.52,659.44,1.833]
[1751956007589,1.02021086,660.26,659.44,1.833]
[1751956007788,1.02021086,660.25,659.44,1.833]
[1751956008085,1.02043791,660.24,659.44,1.833]
[1751956008286,1.02043791,660.23,659.44,1.833]
[1751956008589,1.02050108,660.22,659.44,1.833]
[1751956008889,1.02050108,660.31,659.44,1.833]
[1751956009087,1.02050108,660.3,659.44,1.833]
[1751956009386,1.02050108,660.29,659.44,1.833]
[1751956009588,1.02050108,660.28,659.44,1.833]
[1751956009785,1.02050108,660.27,659.44,1.833]
[1751956009984,1.02050108,660.26,659.44,1.833]
[1751956010288,1.02050108,660.25,659.44,1.833]
[1751956010519,1.69616787,660.2,659.49,1.69723413]
[1751956011289,1.69616787,660.2,659.5,1.69723413]
[1751956013387,1.69616787,660.2,659.49,1.69723413]
[1751956014388,1.69616787,660.2,659.44,1.833]
[1751956014389,1.69616787,660.2,659.5,1.69723413]
[1751956015990,1.69616787,660.19,659.5,1.69723413]
[1751956016188,1.69616787,660.19,659.51,1.69723413]
[1751956016793,1.69616787,660.2,659.5,1.69723413]
[1751956017490,1.69616787,660.19,659.51,1.69723413]
[1751956018389,1.69616787,660.19,659.52,1.69723413]
[1751956018791,1.69616787,660.17,659.54,1.69723413]
[1751956020192,4.3755193,660.17,659.54,1.69723413]
[1751956020388,2.67935143,660.16,659.54,1.69723413]
[1751956020592,1.69616787,660.14,659.51,1.69723413]
[1751956021090,1.69616787,660.15,659.5,1.69723413]
[1751956021292,1.69616787,660.2,659.56,1.69723413]
[1751956022393,0.26365035,660.32,659.56,1.69723413]
[1751956022394,1.69616787,660.19,659.56,1.69723413]
[1751956023192,1.69616787,660.18,659.58,1.69723413]
[1751956023690,4.376385,660.18,659.58,1.69723413]
[1751956023893,2.68021713,660.17,659.58,1.69723413]
[1751956024096,0.41380898,660.17,659.58,1.69723413]
[1751956024295,1.69616787,660.18,659.58,1.69723413]
[1751956025290,1.69616787,660.17,659.59,1.69723413]
[1751956026395,1.69616787,660.16,659.6,1.69723413]
[1751956026896,1.69616787,660.15,659.61,1.69723413]
[1751956028196,1.69616787,660.14,659.62,1.69723413]
[1751956029200,1.69616787,660.14,659.63,1.69723413]
[1751956029394,1.69616787,660.15,659.61,1.69723413]
[1751956029798,1.69616787,660.15,659.62,1.282]
[1751956030195,1.69616787,660.14,659.62,2.97923413]
[1751956031000,1.69616787,660.13,659.63,1.69723413]
[1751956031300,1.69616787,660.13,659.64,1.69723413]
[1751956032295,1.69616787,660.12,659.64,1.69723413]
[1751956033201,1.69616787,660.12,659.65,1.69723413]
[1751956035600,1.69616787,660.12,659.64,1.69723413]
[1751956038195,1.69616787,660.12,659.65,1.69723413]
[1751956039199,1.69616787,660.1,659.67,1.69723413]
[1751956041098,1.69616787,660.09,659.68,1.69723413]
[1751956043899,1.69616787,660.11,659.65,1.69723413]
[1751956044298,1.69616787,660.11,659.66,1.69723413]
[1751956044802,1.69616787,660.12,659.66,1.69723413]
[1751956045412,1.69616787,660.12,659.67,1.69723413]
[1751956046002,1.69616787,660.11,659.67,1.69723413]
[1751956053508,1.69616787,660.09,659.71,1.69723413]
[1751956055706,1.69616787,660.11,659.69,1.69723413]
[1751956055912,0.41495333,660.11,659.72,1.69723413]
[1751956056112,1.69616787,660.13,659.72,1.69723413]
[1751956056825,1.69616787,660.16,659.69,1.69723413]
[1751956057111,2.68818764,660.17,659.74,1.69723413]
[1751956057309,2.68818764,660.19,659.74,1.69723413]
[1751956057512,1.44003464,660.19,659.73,1.69723413]
[1751956057706,1.69616787,660.21,659.73,1.69723413]
[1751956059411,1.69616787,660.21,659.72,1.69723413]
[1751956059912,1.69616787,660.17,659.68,1.69723413]
[1751956060807,1.69616787,660.22,659.73,1.69723413]
[1751956061411,1.69616787,660.22,659.72,1.69723413]
[1751956062115,1.69616787,660.3,659.76,1.69723413]
[1751956062410,1.69616787,660.3,659.62,1.282]
[1751956062411,1.69616787,660.3,659.75,1.69723413]
[1751956063213,1.69616787,660.3,659.76,1.69723413]
[1751956063510,1.69616787,660.3,659.75,1.69723413]
[1751956063912,1.69616787,660.31,659.75,1.69723413]
[1751956065016,1.69616787,660.3,659.76,1.69723413]
[1751956065413,1.69616787,660.31,659.76,1.69723413]
[1751956065614,1.70149072,660.31,659.76,1.70132859]
[1751956066114,3.14118144,660.31,659.76,1.70132859]
[1751956066314,1.70149072,660.31,659.75,1.70132859]
[1751956066713,1.70149072,660.31,659.76,1.70132859]
[1751956067415,1.70149072,660.31,659.75,1.70132859]
[1751956068514,1.96514107,660.32,659.75,1.70132859]
[1751956069417,1.96514107,660.32,659.74,1.70132859]
[1751956069817,0.26365035,660.32,659.72,1.70132859]
[1751956071553,0.26365035,660.32,659.72,1.70035991]
[1751956072119,0.26365035,660.32,659.62,1.282]
[1751956072120,0.26365035,660.32,659.73,1.70035991]
[1751956075331,0.26365035,660.32,659.74,1.536]
[1751956079840,1.96417307,660.32,659.75,1.70035991]
[1751956080435,1.70052272,660.31,659.77,1.70035991]
[1751956082341,1.70052272,660.31,659.76,1.70035991]
[1751956082841,1.96417307,660.32,659.76,1.70035991]
[1751956085542,1.96417307,660.32,659.74,1.536]
[1751956085543,1.70052272,660.31,659.77,1.70035991]
[1751956087744,1.70052272,660.31,659.78,1.70035991]
[1751956094948,1.70052272,660.3,659.78,1.70035991]
[1751956095851,0.26365035,660.32,659.74,1.536]
[1751956096055,1.69987191,660.3,659.78,1.69982408]
[1751956098350,1.69987191,660.3,659.79,1.69982408]
[1751956099551,1.69987191,660.29,659.79,1.69982408]
[1751956103354,1.69987191,660.29,659.8,1.69982408]
[1751956104354,1.69987191,660.28,659.8,1.69982408]
[1751956105656,1.69987191,660.26,659.74,1.536]
[1751956108161,1.69987191,660.27,659.74,1.536]
[1751956108360,1.69987191,660.26,659.74,1.536]
[1751956108758,1.69987191,660.27,659.74,1.536]
[1751956109461,1.69987191,660.26,659.71,1.69982408]
[1751956111362,1.69987191,660.25,659.72,1.69982408]
[1751956112164,1.69987191,660.25,659.73,1.794]
[1751956112565,1.69987191,660.23,659.75,1.69982408]
[1751956114467,1.69987191,660.22,659.76,1.69982408]
[1751956115570,0.26365035,660.32,659.73,1.794]
[1751956115571,1.69987191,660.2,659.79,1.69982408]
[1751956116470,1.69987191,660.19,659.79,1.69982408]
[1751956117474,1.69987191,660.19,659.8,1.69982408]
[1751956118276,1.69987191,660.2,659.79,1.69982408]
[1751956118573,4.38751548,660.2,659.79,1.69982408]
[1751956118776,2.68764357,660.19,659.79,1.69982408]
[1751956118976,0.41393203,660.19,659.79,1.69982408]
[1751956119375,1.69987191,660.2,659.79,1.69982408]
[1751956119672,1.69987191,660.2,659.78,1.69982408]
[1751956120572,1.69987191,660.2,659.73,1.794]
[1751956120573,1.69987191,660.2,659.79,1.69982408]
[1751956124278,1.69987191,660.21,659.78,1.69982408]
[1751956124885,1.69987191,660.2,659.78,1.69982408]
[1751956125381,1.69987191,660.21,659.78,1.69982408]
[1751956125785,1.69987191,660.2,659.78,1.69982408]
[1751956129584,1.69987191,660.19,659.79,1.69982408]
[1751956130088,0.26365035,660.32,659.79,1.69982408]
[1751956130089,1.69987191,660.2,659.79,1.69982408]
[1751956131593,1.69987191,660.21,659.79,1.69982408]
[1751956132796,1.69987191,660.22,659.77,1.69982408]
[1751956133994,1.69987191,660.21,659.78,1.69982408]
[1751956135694,1.69987191,660.24,659.74,1.69982408]
[1751956136098,1.69987191,660.23,659.74,1.69982408]
[1751956136398,1.69987191,660.23,659.75,1.69982408]
[1751956136597,1.69987191,660.24,659.73,3.49382408]
[1751956142599,1.69987191,660.24,659.74,1.69982408]
[1751956145500,1.02553398,660.31,659.73,1.794]
[1751956145501,1.69987191,660.22,659.77,1.69982408]
[1751956146407,1.02553398,660.21,659.77,1.69982408]
[1751956146607,1.69987191,660.19,659.81,1.69982408]
[1751956147707,0.4149386,660.27,659.73,1.794]
[1751956148007,2.69027693,660.33,659.73,1.794]
[1751956148607,1.44047258,660.33,659.73,1.794]
[1751956148807,1.69987191,660.34,659.73,1.794]
[1751956157509,1.69987191,660.27,659.8,1.69982408]
[1751956160016,1.69987191,660.27,659.81,1.69982408]
[1751956160219,1.69987191,660.27,659.8,1.69982408]
[1751956160414,1.69987191,660.27,659.81,1.69982408]
[1751956161519,1.69987191,660.26,659.81,1.69982408]
[1751956162820,1.69987191,660.26,659.82,1.69982408]
[1751956163622,1.69987191,660.25,659.82,1.69982408]
[1751956164216,1.69987191,660.26,659.82,1.69982408]
[1751956165324,1.0254058,660.28,659.7,2.26297884]
[1751956165623,1.70319828,660.26,659.82,1.70361683]
[1751956166823,1.70319828,660.26,659.83,1.447]
[1751956168726,1.70319828,660.23,659.86,1.70361683]
[1751956172224,1.70319828,660.24,659.86,1.70361683]
[1751956173924,1.70319828,660.27,659.83,1.447]
[1751956183844,1.70319828,660.24,659.85,1.70361683]
[1751956184644,1.70319828,660.24,659.86,1.70361683]
[1751956185141,1.70319828,660.24,659.85,1.70361683]
[1751956187740,1.70319828,660.23,659.86,1.70361683]
[1751956187946,1.70319828,660.23,659.86,3.40561683]
[1751956189144,1.70319828,660.23,659.86,1.702]
[1751956190741,1.70319828,660.24,659.86,1.702]
[1751956191044,1.70319828,660.23,659.86,1.702]
[1751956194848,1.70319828,660.23,659.86,3.40561683]
[1751956195050,1.70319828,660.22,659.86,3.40561683]
[1751956199447,1.70319828,660.22,659.87,1.70361683]
[1751956202255,2.72912293,660.22,659.87,1.70361683]
[1751956202952,1.70319828,660.22,659.87,1.70361683]
[1751956203452,1.66457509,660.31,659.87,1.70361683]
[1751956203453,1.70319828,660.21,659.87,1.70361683]
[1751956205660,1.70319828,660.24,659.86,1.70361683]
[1751956205854,0.41491833,660.3,659.92,1.70361683]
[1751956206156,1.70319828,660.31,659.93,1.70361683]
[1751956206352,1.70319828,660.32,659.92,1.70361683]
[1751956206655,2.69057828,660.32,659.92,1.70361683]
[1751956206851,0.41491833,660.32,659.92,1.70361683]
[1751956207055,1.70319828,660.33,659.92,1.70361683]
[1751956208257,1.70319828,660.34,659.91,1.70361683]
[1751956210357,1.70319828,660.35,659.91,1.70361683]
[1751956211158,1.70319828,660.35,659.9,1.70361683]
[1751956212654,2.11811661,660.35,659.9,1.70361683]
[1751956212858,1.70319828,660.35,659.9,1.70361683]
[1751956213256,1.70319828,660.36,659.9,1.70361683]
[1751956214161,1.70319828,660.37,659.88,3.61961683]
[1751956215260,1.70319828,660.37,659.88,1.916]
[1751956215462,1.70319828,660.36,659.89,1.70361683]
[1751956215662,1.70319828,660.36,659.9,1.70361683]
[1751956216163,1.70319828,660.36,659.89,1.70361683]
[1751956216560,1.70319828,660.38,659.88,1.916]
[1751956216758,1.70319828,660.41,659.9,1.70361683]
[1751956217263,1.70319828,660.42,659.9,1.70361683]
[1751956218163,1.70319828,660.42,659.88,1.916]
[1751956218164,1.70319828,660.42,659.89,1.70361683]
[1751956219264,1.70319828,660.43,659.89,1.70361683]
[1751956221364,1.70319828,660.43,659.88,3.61961683]
[1751956223268,1.96683764,660.44,659.88,3.61961683]
[1751956224062,1.70319828,660.43,659.89,1.70361683]
[1751956224964,1.70319828,660.41,659.93,1.70361683]
[1751956225174,1.70319828,660.4,659.93,1.70361683]
[1751956225369,1.70319828,660.41,659.93,1.70361683]
[1751956225865,1.70319828,660.41,659.92,1.70361683]
[1751956226571,1.70319828,660.42,659.91,1.70361683]
[1751956226873,1.70319828,660.41,659.92,1.70361683]
[1751956227571,2.11761999,660.41,659.92,1.70361683]
[1751956227871,1.70319828,660.41,659.93,1.70361683]
[1751956228370,1.70319828,660.4,659.93,1.70361683]
[1751956228867,1.70319828,660.41,659.93,1.70361683]
[1751956229070,1.70319828,660.41,659.92,1.70361683]
[1751956229368,1.70319828,660.42,659.92,1.70361683]
[1751956229568,1.96683764,660.44,659.88,3.61961683]
[1751956229772,0.26363936,660.44,659.92,1.70361683]
[1751956232768,0.26363936,660.44,659.88,1.916]
[1751956232969,0.26363936,660.44,659.88,1.70361683]
[1751956236274,0.26363936,660.44,659.89,1.309]
[1751956240578,0.26363936,660.44,659.9,1.70361683]
[1751956241279,0.26363936,660.44,659.92,1.70361683]
[1751956242385,0.26363936,660.44,659.89,1.309]
[1751956242386,0.26363936,660.44,659.93,1.70361683]
[1751956245384,0.26363936,660.44,659.94,1.70361683]
[1751956247690,0.26363936,660.44,659.95,1.70361683]
[1751956247886,0.26363936,660.44,659.92,1.70361683]
[1751956249892,0.26363936,660.44,659.9,1.70361683]
[1751956250293,0.26363936,660.44,659.89,1.309]
[1751956250294,0.26363936,660.44,659.91,1.70361683]
[1751956251690,0.26363936,660.44,659.89,1.309]
[1751956255391,0.26363936,660.44,659.89,3.01261683]
[1751956257793,0.26363936,660.44,659.9,1.70361683]
[1751956258298,0.26363936,660.44,659.91,1.70361683]
[1751956259896,0.26363936,660.44,659.92,1.70361683]
[1751956261299,1.96421095,660.44,659.84,2.26297884]
[1751956261594,1.96421095,660.44,659.96,1.70116107]
[1751956262298,1.96421095,660.44,659.93,1.466]
[1751956262299,1.70057159,660.43,659.97,1.70116107]
[1751956263298,1.70057159,660.42,659.99,1.70116107]
[1751956264099,1.70057159,660.41,660.0,1.70116107]
[1751956265200,1.70057159,660.4,660.01,1.70116107]
[1751956265400,1.70057159,660.4,660.0,1.70116107]
[1751956266799,1.70057159,660.4,660.01,1.70116107]
[1751956270806,1.70057159,660.42,659.97,1.70116107]
[1751956271000,0.26363936,660.44,659.93,1.466]
[1751956271801,1.96421095,660.44,659.93,1.466]
[1751956272900,0.26363936,660.44,659.93,1.466]
[1751956275002,1.0254191,660.43,659.93,1.466]
[1751956275200,1.0254191,660.42,659.93,1.466]
[1751956275405,1.70057159,660.38,659.93,1.466]
[1751956278304,1.70057159,660.39,659.93,1.466]
[1751956278508,1.70057159,660.38,659.93,1.466]
[1751956279606,1.70057159,660.35,659.93,1.466]
[1751956282310,1.70057159,660.33,659.93,1.466]
[1751956284910,1.70057159,660.32,659.93,1.466]
[1751956287213,4.38938281,660.32,659.93,1.466]
[1751956287413,2.68881122,660.31,659.93,1.466]
[1751956287613,2.68881122,660.32,659.93,1.466]
[1751956287814,0.41490044,660.32,659.93,1.466]
[1751956288013,1.70057159,660.33,659.93,1.466]
[1751956288414,1.70057159,660.34,659.93,1.466]
[1751956290918,3.140245,660.43,659.93,1.466]
[1751956291114,1.70057159,660.43,659.93,1.466]
[1751956291318,2.11504215,660.43,659.93,1.466]
[1751956291520,1.70057159,660.43,659.93,1.466]
[1751956291716,1.70057159,660.42,659.93,1.466]
[1751956292121,1.70057159,660.43,659.93,1.466]
[1751956299623,1.70057159,660.43,659.74,1.70116107]
[1751956300826,1.70057159,660.37,659.85,1.70116107]
[1751956301126,1.70057159,660.37,659.84,1.70116107]
[1751956301724,1.70057159,660.36,659.85,1.70116107]
[1751956303523,1.70057159,660.36,659.86,1.754]
[1751956304526,1.70057159,660.38,659.86,3.45516107]
[1751956305132,1.70057159,660.38,659.87,1.70116107]
[1751956311835,1.70057159,660.38,659.88,1.70116107]
[1751956313735,1.70057159,660.38,659.86,1.754]
[1751956313736,1.70057159,660.39,659.86,3.45516107]
[1751956316038,1.70057159,660.39,659.87,1.70116107]
[1751956317139,1.70057159,660.38,659.87,1.70116107]
[1751956317340,1.96421095,660.44,659.95,1.70116107]
[1751956317537,1.70057159,660.45,659.96,1.70116107]
[1751956318040,1.70057159,660.46,659.96,1.70116107]
[1751956318438,2.11482674,660.46,659.96,1.70116107]
[1751956318636,1.70057159,660.46,659.97,1.70116107]
[1751956319542,1.70057159,660.47,659.97,1.70116107]
[1751956321342,1.70057159,660.48,659.96,1.70116107]
[1751956322045,1.70057159,660.47,659.96,1.70116107]
[1751956322342,1.70057159,660.48,659.94,1.70116107]
[1751956322545,1.70057159,660.48,659.95,1.70116107]
[1751956323150,1.70057159,660.48,659.86,1.754]
[1751956323151,1.70057159,660.47,659.96,1.70116107]
[1751956323346,1.70097088,660.47,659.96,1.70166984]
[1751956323545,1.70097088,660.47,659.86,1.754]
[1751956323546,1.70097088,660.49,659.98,1.70166984]
[1751956324650,1.70097088,660.5,659.97,1.70166984]
[1751956326451,1.70097088,660.5,659.96,1.70166984]
[1751956326647,1.70097088,660.5,659.86,1.754]
[1751956326648,1.70097088,660.51,659.95,1.70166984]
[1751956328146,1.70097088,660.51,659.94,1.70166984]
[1751956329752,0.26359143,660.53,659.9,1.70166984]
[1751956332052,0.26359143,660.53,659.91,1.70166984]
[1751956333655,0.26359143,660.53,659.89,1.70166984]
[1751956334555,0.26359143,660.53,659.9,1.70166984]
[1751956335179,0.26359143,660.53,659.89,1.70166984]
[1751956336653,0.26359143,660.53,659.86,1.754]
[1751956336654,0.26359143,660.53,659.9,1.70166984]
[1751956339759,0.26359143,660.53,659.52,0.26366533]
[1751956339760,1.96456231,660.53,659.93,1.70166984]
[1751956340958,1.96456231,660.53,659.94,1.527]
[1751956342561,0.26359143,660.53,659.94,1.527]
[1751956343664,1.96456231,660.53,659.94,1.527]
[1751956344165,1.70097088,660.52,659.94,1.527]
[1751956344364,1.70097088,660.52,659.94,3.22866984]
[1751956347266,1.70097088,660.52,659.95,1.70166984]
[1751956349764,1.96456231,660.53,659.94,1.527]
[1751956351766,1.70097088,660.52,659.94,1.527]
[1751956352271,1.70097088,660.51,659.96,1.70166984]
[1751956353868,1.70097088,660.5,659.96,1.70166984]
[1751956355570,1.70097088,660.5,659.97,1.70166984]
[1751956356574,1.70097088,660.51,659.96,1.70166984]
[1751956357372,1.70097088,660.5,659.97,1.70166984]
[1751956359580,1.70097088,660.48,659.99,1.70166984]
[1751956361076,1.70097088,660.48,660.0,1.70166984]
[1751956363081,1.70097088,660.47,660.0,1.70166984]
[1751956363278,1.70097088,660.5,659.95,1.70166984]
[1751956364181,1.70097088,660.5,659.96,1.70166984]
[1751956366482,1.70097088,660.49,659.97,1.70166984]
[1751956366879,1.70097088,660.49,659.94,1.527]
[1751956366880,1.70097088,660.5,659.96,1.70166984]